Cogmind - Beta 15 @@@ ROGUE MODE // 2025.09.01 @ 05:01:36 Player: shapeshifter Result: Destroyed by CM-HKR(R) with Subdweller Laser Performance ------------- Evolutions (0) 0 Regions Visited (2) 400 Robots Destroyed (19) 95 Value Destroyed (418) 418 Prototype IDs (0) 0 Alien Tech Used (0) 0 Bonus (0) 0 TOTAL SCORE: 913 Bonus ------- None Cogmind --------- Core Integrity 0/250 Matter 261/300 Energy 159/200 System Corruption 0% Temperature Cool (24) Movement Rolling (130) Ox2 Location -10/Subcaves Parts ------- > --- POWER (1) -------- Subdweller Power Source > --- PROPULSION (2) --- Subdweller Monowheel Subdweller Monowheel > --- UTILITY (2) ------ Huge Storage Unit Core Shielding > --- WEAPON (2) ------- Subdweller Laser Subdweller Beam Cannon > --- INVENTORY (25) --- Wheel Subdweller Monowheel Subdweller Optics Scrap Shield Makeshift System Restoration Module Subdweller Laser SUBCON Basin (Full) Peak State ------------ > --- POWER ------------ Subdweller Power Source > --- PROPULSION ------- Subdweller Monowheel Subdweller Monowheel > --- UTILITY ---------- Huge Storage Unit Makeshift Kinetic Plating > --- WEAPON ----------- Subdweller Beam Cannon Battle Rifle > --- INVENTORY -------- Wheel Subdweller Monowheel Subdweller Monowheel Subdweller Optics Core Shielding Scrap Shield Makeshift System Restoration Module Subdweller Laser Subdweller Laser SUBCON Basin [Rating: 35] Favorites ----------- Power Light Ion Engine Engine Light Ion Engine Propulsion Subdweller Monowheel Treads Light Treads Wheel Subdweller Monowheel Utility Huge Storage Unit Device Seismic Detector Storage Huge Storage Unit Protection Makeshift Kinetic Plating Weapon Assault Rifle Energy Gun Subdweller Laser Energy Cannon Subdweller Beam Cannon Ballistic Gun Assault Rifle Build | -11 -10 -10 ------- Run | Yrd Mat Sub Slots Evolved . | . . . Power . | . . . Propulsion . | . . . Utility . | . . . Weapon . | . . . Parts Attached 24 | 7 1 16 Power 4 | 1 . 3 Engine 4 | 1 . 3 Core . | . . . Reactor . | . . . Propulsion 7 | 2 . 5 Treads 2 | 2 . . Leg . | . . . Wheel 5 | . . 5 Hover . | . . . Flight . | . . . Utility 6 | 2 1 3 Device 1 | 1 . . Storage 3 | 1 1 1 Processor . | . . . Hackware . | . . . Protection 2 | . . 2 Artifact . | . . . Weapon 7 | 2 . 5 Energy Gun 1 | . . 1 Energy Cannon 1 | . . 1 Ballistic Gun 5 | 2 . 3 Ballistic Cannon . | . . . Launcher . | . . . Special Weapon . | . . . Impact Weapon . | . . . Slashing Weapon . | . . . Piercing Weapon . | . . . Special Melee Weapon . | . . . Unidentified Prototypes . | . . . Parts Lost 7 | . . 7 Power 1 | . . 1 Propulsion 1 | . . 1 Utility 2 | . . 2 Weapon 3 | . . 3 Highest Loss Streak 3 | . . 3 To Critical Strikes . | . . . Average Backups 8 | 2 6 9 Power . | . 1 . Propulsion 2 | 1 2 2 Utility 1 | . 1 2 Weapon 3 | . 2 4 Tool/Special . | . . . Unused Backups 8 | . . 8 Power . | . . . Propulsion 1 | . . 1 Utility 4 | . . 4 Weapon 3 | . . 3 Tool/Special . | . . . Average Slot Usage (%) 99 | . 100 99 Engine 13 | . 14 13 Treads 10 | . 28 2 Wheel 17 | . . 25 Device 7 | . 14 3 Storage 14 | . 14 14 Protection 6 | . . 10 Energy Cannon 1 | . . 2 Ballistic Gun 25 | . 28 24 Peak Build Rating 35 | 7 7 35 Average Rating 20 | 4 7 28 On Entrance 4 | . 7 7 Naked Turns . | . . . Heaviest Build 102 | 13 18 102 Greatest Support 40 | 40 40 40 Greatest Overweight (x) 5 | . . 5 Average Overweight (x) 1 | . . 2 Largest Inventory Capacity 25 | 8 10 25 Average Capacity 18 | 7 8 23 Most Carried 25 | 5 8 25 Average Carried 16 | 2 6 22 Final Capacity 25 | 8 10 25 Final Carried 22 | 4 8 22 Class Distribution -------------------- 86% | Mutant 13% | Scavenger-Mutant Dominant Class ---------------- Mutant | -10/Materials Mutant | -10/Subcaves Resources | -11 -10 -10 ----------- Run | Yrd Mat Sub Matter Collected 749 | 304 90 355 Remotely . | . . . Salvage Created 534 | 84 69 381 Parts 47 | 6 7 34 Haulers Intercepted . | . . . Recyclers Shooed . | . . . Parts Field Recycled . | . . . Retrieved Matter . | . . . Parts Self-Destructed 14 | . . 14 Prevented . | . . . Kills | -11 -10 -10 ------- Run | Yrd Mat Sub Combat Hostiles Destroyed 15 | . 5 10 Guns 14 | . 5 9 Cannons 1 | . . 1 Classes Destroyed 6 | 2 1 3 Tunneler 1 | 1 . . Recycler 1 | 1 . . Turret 2 | . . 2 Swarmer 9 | . 5 4 Sentry 1 | . . 1 Subdweller 5 | . . 5 Best Kill Streak 6 | 2 3 6 Combat Bots Only 4 | . 3 4 Max Kills in Single Turn 2 | 1 2 1 Gunslinging 1 | . 1 . Exploded . | . . . Melee . | . . . Uniques/NPCs Destroyed . | . . . Combat | -11 -10 -10 -------- Run | Yrd Mat Sub Hostile Shots Fired 157 | . 41 116 Missed 48 | . 17 31 Hits 109 | . 24 85 Projectile 109 | . 24 85 Damage Taken 1473 | . 195 1278 Core 253 | . 8 245 Absorbed by Shields . | . . . Redirected to Shielding 14 | . . 14 Ignored by Resistances 14 | . . 14 Core Remaining (%) 100 | 100 . . Volleys Fired 84 | 7 12 65 Largest 2 | 2 2 2 Hottest 140 | 40 40 140 Shots Fired 146 | 14 24 108 Gun 127 | 14 24 89 Cannon 19 | . . 19 Launcher . | . . . Special . | . . . Kinetic 125 | 14 24 87 Thermal 21 | . . 21 Explosive . | . . . Electromagnetic . | . . . Robot Hit Streak 21 | 4 3 21 Robot Miss Streak 6 | 6 6 3 Penetration Max . | . . . Secondary Targets 3 | . 1 2 Max Gunslinging Chain 1 | . 1 1 Shots Hit Robots 84 | 5 8 71 Core Hits 25 | 2 5 18 Critical Kills . | . . . Critical Parts Destroyed . | . . . Critical Strikes 2 | . . 2 Destroy 2 | . . 2 Melee Attacks . | . . . Impact . | . . . Slashing . | . . . Piercing . | . . . Sneak Attacks . | . . . Combat Hostiles . | . . . Follow-up Attacks . | . . . Damage Inflicted 1402 | 86 136 1180 Guns 1159 | 86 136 937 Cannons 243 | . . 243 Explosions . | . . . Melee . | . . . Ramming . | . . . Kinetic 1116 | 86 136 894 Thermal 286 | . . 286 Explosive . | . . . Electromagnetic . | . . . Impact . | . . . Slashing . | . . . Piercing . | . . . Highest Corruption . | . . . Average Corruption . | . . . Corruption Purged . | . . . Corruption Blocked . | . . . Overload Shots . | . . . Overflow Damage . | . . . Projectiles . | . . . Explosions . | . . . Melee . | . . . Knockbacks . | . . . Impact . | . . . Kinetic . | . . . Secondary . | . . . Self-Inflicted Damage . | . . . Shots . | . . . Rammed . | . . . Targets Rammed . | . . . Kicked . | . . . Crushed . | . . . Highest Temperature 96 | . . 96 Average Temperature 31 | . . 31 Received Heat Transfer 378 | . . 378 Siege Activations . | . . . Martial Activations . | . . . Shielding Activations . | . . . Robots Disrupted . | . . . Combat Hostiles . | . . . Robots Corrupted . | . . . Combat Hostiles . | . . . Parts Fried . | . . . Impact Corruptions . | . . . Robots Melted . | . . . Combat Hostiles . | . . . Parts Melted 1 | . . 1 Heat Transferred 383 | . . 383 Parts Sabotaged . | . . . Parts Stolen . | . . . Parts Stripped . | . . . Power Chain Reactions . | . . . Alert | -11 -10 -10 ------- Run | Yrd Mat Sub Maximum Alert Level . | . . . Low Security (%) 100 | 100 100 . Level 1 . | . . . Level 2 . | . . . Level 3 . | . . . Level 4 . | . . . Level 5 . | . . . High Security . | . . . Max Security . | . . . Peak Influence 60 | 5 60 . Initial . | . . . Average 13 | . 16 . Influence Increases 379 | 10 139 230 Destroy 0b10 Robot/C 240 | . 100 140 Destroy 0b10 Robot/NC 10 | 10 . . Destroy Leader 20 | . 20 . Successful Hack 4 | . 4 . Disable Machine 15 | . 15 . Lose Combat Pursuer 90 | . . 90 Influence Decreases 281 | 10 139 132 Time Decay 241 | 10 139 92 Lost Part 40 | . . 40 Squads Dispatched . | . . . Investigation . | . . . Extermination . | . . . Reinforcement . | . . . Assault . | . . . Garrison . | . . . Intercept . | . . . Searches Triggered . | . . . Construction Impeded . | . . . Haulers Reinforced . | . . . Active Scanning Responses . | . . . Cargo Convoy Interrupts . | . . . Stealth | -11 -10 -10 --------- Run | Yrd Mat Sub Distress Signals . | . . . Communications Jammed . | . . . Distress Signals . | . . . Times Spotted 25 | . 6 19 Peak Tracking Total 4 | . 3 4 Tactical Retreats 2 | . . 2 Traps | -11 -10 -10 ------- Run | Yrd Mat Sub Traps Triggered . | . . . Indirectly . | . . . Trap Hack Attempts . | . . . Triggered . | . . . Disarmed . | . . . Reprogrammed . | . . . Reused . | . . . Traps Extracted . | . . . Installed . | . . . Triggered . | . . . Machines | -11 -10 -10 ---------- Run | Yrd Mat Sub Machines Disabled 2 | . 1 1 Max in Single Turn 1 | . 1 1 Machines Repaired . | . . . Machines Dismantled . | . . . Machines Sabotaged . | . . . Overloaded Fab Kills . | . . . Hacking | -11 -10 -10 --------- Run | Yrd Mat Sub Machines Accessed 6 | . 3 3 Terminals 3 | . 3 . Fabricators . | . . . Repair Stations . | . . . Recycling Units . | . . . Scanalyzers . | . . . Garrison Access . | . . . Total Hacks 13 | . 6 7 Successful 11 | . 4 7 Failed 2 | . 2 . Catastrophic . | . . . Database Lockouts . | . . . Manual 5 | . 5 . Terminals 6 | . 6 . Fabricators . | . . . Repair Stations . | . . . Recycling Units . | . . . Scanalyzers . | . . . Garrison Access . | . . . Terminal Hacks 9 | . 2 7 Record 5 | . . 5 Open Door 1 | . . 1 Registered Components 1 | . 1 . Zone Layout 1 | . 1 . Release Object 1 | . . 1 Fabricator Hacks . | . . . Repair Station Hacks . | . . . Recycling Unit Hacks . | . . . Scanalyzer . | . . . Garrison Access Hacks . | . . . Unauthorized Hacks 2 | . 2 . Terminals 2 | . 2 . Botnet 2 | . 2 . Fabricators . | . . . Repair Stations . | . . . Recycling Units . | . . . Scanalyzers . | . . . Garrison Access . | . . . Data Cores Recovered . | . . . Used . | . . . Hacking Detections 2 | . 2 . Full Trace Events . | . . . Feedback Events . | . . . Feedback Blocked . | . . . Robot Schematics Acquired . | . . . Robots Built . | . . . Authchips . | . . . Time . | . . . Total Robot Build Rating . | . . . Part Schematics Acquired . | . . . Parts Built . | . . . Authchips . | . . . Time . | . . . Total Part Build Rating . | . . . Parts Repaired . | . . . Time . | . . . Parts Recycled . | . . . Recycled Matter . | . . . Retrieved Matter . | . . . Retrieved Components . | . . . Parts Scanalyzed . | . . . Part Schematics Acquired . | . . . Parts Damaged . | . . . Bothacking | -11 -10 -10 ------------ Run | Yrd Mat Sub Used RIF Installer . | . . . Robots Hacked . | . . . Non-combat . | . . . Combat . | . . . Robot Hacks Applied . | . . . Relay Couplers Released . | . . . Fabnet Peak Effective % . | . . . Robots Rewired . | . . . Allies Hacked . | . . . Hacks Repelled . | . . . Allies | -11 -10 -10 -------- Run | Yrd Mat Sub Total Allies . | . . . Largest Group . | . . . Highest-Rated Group . | . . . Highest-Rated Ally . | . . . Total Orders . | . . . Ally Attacks . | . . . Total Damage . | . . . Kills . | . . . Allies Corrupted . | . . . Allies Melted . | . . . Intel | -11 -10 -10 ------- Run | Yrd Mat Sub Active Infowar (turns) 786 | 20 470 296 Seismic 786 | 20 470 296 Robot Analysis Total . | . . . Derelict Logs Recovered 1 | . . 1 Drone Launches . | . . . Drone Recoveries . | . . . Exploration | -11 -10 -10 ------------- Run | Yrd Mat Sub Turns Passed 1663 | 114 470 1079 Spaces Moved 950 | 63 238 649 Core 22 | 22 . . Treads 303 | 41 238 24 Legs . | . . . Wheels 625 | . . 625 Hover . | . . . Flight . | . . . Fastest Speed 50 | 50 160 119 Average Speed 135 | 121 160 128 Slowest Speed 160 | 160 160 160 Overloaded Moves . | . . . Propulsion Burnouts . | . . . Robots Hopped . | . . . Potential Cave-ins . | . . . Cave-ins Triggered . | . . . Exploration Rate (%) 29 | 4 48 35 Regions Visited 2 Branch Regions 1 Pre-discovered Areas 2 | . . 2 Known Exits Taken . | . . . Unknown Exits Taken 2 | 1 1 . Scrap Searched 3 | . . 3 Spaces Dug . | . . . Terrain Destroyed 2 | . . 2 Melee . | . . . Projectile 2 | . . 2 AOE . | . . . Terrain Rammed . | . . . Walls Destroyed . | . . . Machines Disabled . | . . . Actions | -11 -10 -10 --------- Run | Yrd Mat Sub Total 1186 | 87 304 795 Wait 87 | . 49 38 Move 948 | 62 237 649 Hop . | . . . Pick Up 28 | 11 4 13 Fast Attach . | . . . Attach 14 | 7 . 7 Detach . | . . . Swap 12 | . 1 11 Drop 13 | . 1 12 Fire 84 | 7 12 65 Melee . | . . . Ram . | . . . Kick . | . . . Crush . | . . . Escape Stasis . | . . . Rewire . | . . . Trap . | . . . Miscellaneous . | . . . Route ------- -11/Scrapyard -10/Materials (discovered 2 exits: [*Mat] / *Sub) -10/Subcaves (discovered 3 exits: [*Mat] / *Rec / [*Scr]) History --------- Turn | Location | Event 7 | -11/Scrapyard | Discovered new exit (range 15) 115 | -11/Scrapyard | Entered Materials 306 | -10/Materials | Build established: Mutant 312 | -10/Materials | Discovered new exit (range 15) 556 | -10/Materials | Discovered new exit (range 9) 585 | -10/Materials | Entered Subcaves 586 | -10/Subcaves | Approached by a straggling Scientist 648 | -10/Subcaves | Discovered new exit (range 6) 714 | -10/Subcaves | Found SUBCON Basin 746 | -10/Subcaves | Visited Clippyterm 749 | -10/Subcaves | Identified exit to Recycling 749 | -10/Subcaves | Learned location of Section 7 (-2) 763 | -10/Subcaves | Learned 8 Materials zone layouts 812 | -10/Subcaves | Curiously followed by a Cobbler waking with a query about "LVR3C" 966 | -10/Subcaves | Scientist uncovered a shortcut to Scraptown 1136 | -10/Subcaves | Core integrity fell below 50% 1288 | -10/Subcaves | Learned location of Zion (-7) 1288 | -10/Subcaves | Met a Zionite searching for "candidates" 1624 | -10/Subcaves | Disturbed a concealed Subdweller 1657 | -10/Subcaves | Core integrity fell below 20% 1664 | -10/Subcaves | Destroyed by CM-HKR(R) with Subdweller Laser Last Messages --------------- repair. 01461_ Sub. Monowheel shoots sparks and powers down. 01463_ Acquired 39 matter. 01466_ Acquired Sub. Monowheel. 01467_ Autobeam fries itself beyond repair. 01468_ Acquired 55 matter. 01472_ Acquired 8 matter. 01522_ Acquired 1 matter. 01578_ Dropped Med. Laser. 01579_ Dropped Lgt. Assault Rifle. 01579_ Acquired Scrap Shield. 01624_ GF-DRT(R) angrily emerges from the Twisted Machinery. 01647_ Sub. Monowheel destroyed. 01651_ Disposable Heat Sink melted. 01651_ GF-DRT(R) destroyed. 01658_ Battle Rifle destroyed. 01659_ Mak. Kinetic Plating destroyed. 01662_ CG-K8T(O) collects matter. Map ----- +----------------------------------------------------+ | ???????????????????# # ##??????????#"""" | | ??????????????????## # #???????????#"X"" | | ???????????????#### ## ##??????????#" | | ??????????????## # #??????????#" | | ??????????????# # # #??????????#"""" | | ??????????????# "# ###?????????##### | | ??????????????# """" #???????????#"" | | ??????????????#""""""< ##??????????## | | ???????????????#"" ""##??????????## | | ???????????????#" " [####???????????# ## | | ???????????????#" "" ###???????????### | | ???????????????#" """"[#&##????????### ### | | ???????????????#""" " && ########## # | | ???????????????#" ## &## # | | ??????????????#"" ######&# | | ??????????????# # # ! # #### | | ??????????????## "?# #####??# | | ???????????????##?## ###??????# ## | | ?????????????????## # #####????????##### | | ?????????????????#"" ####????????????????# | | ?????????????????#" """#????????????????# | | ??????????????##?# #???????????????? # | | ??????????????# ## #???????????????? ? | | ??????????????# #???????????????? ? | | ?????????###??# ##?????????????? #? | | ?????????? "??### @ #??????????????#?? | | ??????????? ???## #????????????????? | | ???????????" ????;O ##????????????????? | | ???????????? ??## &R ##?????????????????? | | ????????????? ??# * ##??????????????????? | | ????????????## ## ##???????????????????? | | ????????????# #" ##???????????????????? | | ????????????# #???????????????????? | | ????????????# #???????????????????? | | ????????????# #" #??????????????????? | | ??????????? ###< #??????????????????? | | ????????? ???# ##??????????????????? | | ????????&" ????## ##???????????????????? | | ???????#"& ??????# #????????????????????? | | ????????###??????#; #????????????????????? | | ??????????????????# #????????????????????? | | ??????????????????? ????????????????????? | | ??????????????????? ???????????????????? | | ??????????????????? ???????????????????? | | ??????????????????? ???????????????????? | | ??????????????????? ?#??????????????????? | | ??????????????????????????????????????????? | | ??????????????????????????????????????????? | | ??????????????????????????????????????????? | | ??????????????????????????????????????????? | +----------------------------------------------------+ Best States ------------- Heat Dissipation 25 Energy Generation 15 Energy Capacity 200 Matter Stores 300 Matter Capacity 300 Sight Range 16 Terrain Scan Density 10 Armor Coverage 100 Resistance: KI 10 Core Shielding 20 Evasion (%) 50 Recoil Reduction 2 Item Schematics ----------------- None Robot Schematics ------------------ None Fabricated ------------ Nothing Repaired ---------- Nothing Alien Tech Used ----------------- None Achievements -------------- None Challenges ------------ None Game ------ Seed FlightAssaultProcessor Manual? 0 Play Time 00:12:10 Cumulative 242.2 hours Start 2025.09.01 @ 04:51:54 End 2025.09.01 @ 05:01:36 Sessions 1 Manual Loads 0 Difficulty Rogue Special Mode None Game No. 356 Rogue 356 Adventurer 0 Explorer 0 Win Type - Total 5 Types 4/0/1/0/0/0/0/0/0/0 Lore% 82 Gallery% 77 Achievement% 59 Wizard Run 0 Options --------- Layout 1 ASCII 0 Keyboard 0 Movement Mouse Keybinds 0 Fullscreen 1 Font 24/Smallcaps Map View 50x40 Zoom Use 0% Tactical HUD 1 Map Filters NONE Filters NONE Steam 1 RUN: fec5a57f-591c-4a6b-bd58-daccd7e84083